[Event "GrandPrix_29.05"]
[Site "Chess.com"]
[Date "2020.05.29"]
[Round "4"]
[White "Chessialist"]
[Black "Fandorine"]
[Result "1-0"]
[WhiteElo "2536"]
[BlackElo "2481"]
[TimeControl "600+2"]
[EndTime "10:59:34 PDT"]
[Termination "Chessialist won by resignation"]

1. c4 {[%clk 0:10:01.9]} 1... g6 {[%clk 0:09:59.4]} 2. g3 {[%clk 0:10:02.3]}
2... Bg7 {[%clk 0:10:00.8]} 3. Bg2 {[%clk 0:10:04]} 3... e5 {[%clk 0:10:02.1]}
4. Nc3 {[%clk 0:10:04.9]} 4... Nc6 {[%clk 0:10:03.4]} 5. e3 {[%clk 0:10:06.3]}
5... Nge7 {[%clk 0:09:40.7]} 6. Nge2 {[%clk 0:10:04.8]} 6... d6 {[%clk
0:09:38.8]} 7. O-O {[%clk 0:10:05.1]} 7... h5 {[%clk 0:09:39.6]} 8. h4 {[%clk
0:10:05.2]} 8... Be6 {[%clk 0:09:34.4]} 9. Nd5 {[%clk 0:10:04.4]} 9... Qd7
{[%clk 0:09:35.8]} 10. d3 {[%clk 0:09:51.9]} 10... O-O {[%clk 0:09:36.2]} 11.
Rb1 {[%clk 0:09:48.7]} 11... Rae8 {[%clk 0:09:18.7]} 12. b4 {[%clk 0:09:47.3]}
12... Nc8 {[%clk 0:09:19.6]} 13. b5 {[%clk 0:09:46.6]} 13... Nd8 {[%clk
0:09:20.9]} 14. a4 {[%clk 0:09:46]} 14... c6 {[%clk 0:08:44.4]} 15. bxc6 {[%clk
0:09:45]} 15... bxc6 {[%clk 0:08:46.3]} 16. Ndc3 {[%clk 0:09:44.4]} 16... Bh3
{[%clk 0:08:31.1]} 17. Ba3 {[%clk 0:09:31.9]} 17... Bxg2 {[%clk 0:08:29]} 18.
Kxg2 {[%clk 0:09:33.8]} 18... f5 {[%clk 0:08:29.8]} 19. Ng1 {[%clk 0:06:50]}
19... Nf7 {[%clk 0:07:43.4]} 20. Bb2 {[%clk 0:06:09.4]} 20... Nh6 {[%clk
0:07:34.3]} 21. Nce2 {[%clk 0:06:04.7]} 21... Ng4 {[%clk 0:07:13.6]} 22. Nf3
{[%clk 0:05:59.9]} 22... c5 {[%clk 0:05:15.8]} 23. a5 {[%clk 0:05:17]} 23... f4
{[%clk 0:04:46.4]} 24. exf4 {[%clk 0:05:09.8]} 24... exf4 {[%clk 0:04:43]} 25.
Bxg7 {[%clk 0:04:25.8]} 25... Kxg7 {[%clk 0:04:18.6]} 26. Nxf4 {[%clk
0:04:20.7]} 26... Rxf4 {[%clk 0:03:53.7]} 27. gxf4 {[%clk 0:04:22.6]} 27... Rf8
{[%clk 0:03:54.8]} 28. a6 {[%clk 0:04:05.7]} 28... Nb6 {[%clk 0:02:44.5]} 29.
Qe2 {[%clk 0:03:01.7]} 29... Rxf4 {[%clk 0:02:30.9]} 30. Rfe1 {[%clk 0:02:50.2]}
30... Rf7 {[%clk 0:01:09.2]} 31. Qe6 {[%clk 0:01:54.3]} 31... Qc6 {[%clk
0:01:09.9]} 32. Qe4 {[%clk 0:01:55.2]} 32... d5 {[%clk 0:01:08.4]} 33. cxd5
{[%clk 0:01:54.4]} 33... Qf6 {[%clk 0:00:47]} 34. Re2 {[%clk 0:01:29.4]} 34...
Qd6 {[%clk 0:00:31.1]} 35. Ne5 {[%clk 0:00:37]} 35... Nxd5 {[%clk 0:00:13.4]}
36. Rb7 {[%clk 0:00:34.7]} 36... Rxb7 {[%clk 0:00:05.4]} 37. axb7 {[%clk
0:00:32.9]} 37... Nc3 {[%clk 0:00:06.9]} 38. Qxg6+ {[%clk 0:00:31.4]} 38... Qxg6
{[%clk 0:00:08.1]} 39. Nxg6 {[%clk 0:00:33.1]} 39... Nxe2 {[%clk 0:00:10]} 40.
b8=Q {[%clk 0:00:33.4]} 40... Kxg6 {[%clk 0:00:11.9]} 41. Qe8+ {[%clk
0:00:34.4]} 1-0

[Event "GrandPrix_29.05"]
[Site "Chess.com"]
[Date "2020.05.29"]
[Round "4"]
[White "KacperKacprzak"]
[Black "HElissalt"]
[Result "1-0"]
[WhiteElo "2059"]
[BlackElo "1758"]
[TimeControl "600+2"]
[EndTime "10:59:36 PDT"]
[Termination "KacperKacprzak won by resignation"]

1. e4 {[%clk 0:09:55.5]} 1... c5 {[%clk 0:10:00.3]} 2. Nf3 {[%clk 0:09:53.3]}
2... Nc6 {[%clk 0:10:00.3]} 3. d4 {[%clk 0:09:52.9]} 3... cxd4 {[%clk
0:10:01.2]} 4. Nxd4 {[%clk 0:09:53.1]} 4... Nf6 {[%clk 0:10:02.8]} 5. Nc3 {[%clk
0:09:51.5]} 5... e5 {[%clk 0:10:03.9]} 6. Ndb5 {[%clk 0:09:49.6]} 6... h6 {[%clk
0:10:05.1]} 7. Nd6+ {[%clk 0:09:47.3]} 7... Bxd6 {[%clk 0:10:06.3]} 8. Qxd6
{[%clk 0:09:49]} 8... Qe7 {[%clk 0:10:07.8]} 9. Qxe7+ {[%clk 0:09:22.5]} 9...
Kxe7 {[%clk 0:10:08.2]} 10. Be3 {[%clk 0:09:23.6]} 10... d6 {[%clk 0:10:08.9]}
11. f3 {[%clk 0:09:22.7]} 11... Be6 {[%clk 0:10:08.4]} 12. O-O-O {[%clk
0:09:22.3]} 12... a6 {[%clk 0:09:22.8]} 13. Kb1 {[%clk 0:08:42]} 13... b5 {[%clk
0:09:05]} 14. Be2 {[%clk 0:08:37.2]} 14... Rab8 {[%clk 0:08:49.6]} 15. Rd2
{[%clk 0:08:36.6]} 15... Rhd8 {[%clk 0:08:46.6]} 16. Rhd1 {[%clk 0:08:35.3]}
16... g5 {[%clk 0:08:42.3]} 17. g3 {[%clk 0:08:30.7]} 17... Rd7 {[%clk
0:08:12.9]} 18. h4 {[%clk 0:08:19.4]} 18... Rg8 {[%clk 0:08:02.5]} 19. hxg5
{[%clk 0:08:15.2]} 19... hxg5 {[%clk 0:08:02.7]} 20. Rh1 {[%clk 0:08:16.4]}
20... g4 {[%clk 0:07:41.8]} 21. f4 {[%clk 0:08:06.9]} 21... b4 {[%clk
0:07:42.5]} 22. Nd5+ {[%clk 0:07:47.8]} 22... Bxd5 {[%clk 0:07:22.2]} 23. exd5
{[%clk 0:07:49.7]} 23... Nb8 {[%clk 0:07:05.9]} 24. fxe5 {[%clk 0:07:47.1]}
24... dxe5 {[%clk 0:07:02.7]} 25. Bc5+ {[%clk 0:07:45.4]} 25... Ke8 {[%clk
0:06:42.6]} 26. Bd3 {[%clk 0:07:15.2]} 26... Rxd5 {[%clk 0:06:07.2]} 27. Bxb4
{[%clk 0:07:10.6]} 27... Nc6 {[%clk 0:05:21.9]} 28. Bc3 {[%clk 0:07:06.7]} 28...
a5 {[%clk 0:04:53.3]} 29. a4 {[%clk 0:07:00.9]} 29... Ke7 {[%clk 0:04:42]} 30.
Rf2 {[%clk 0:06:44.1]} 30... Rgd8 {[%clk 0:04:28.4]} 31. Rhf1 {[%clk 0:06:38.5]}
31... R8d6 {[%clk 0:04:21]} 32. Kc1 {[%clk 0:06:04.4]} 32... Nd4 {[%clk
0:04:16.2]} 33. b4 {[%clk 0:04:58.1]} 33... Rc6 {[%clk 0:03:17.6]} 34. Kb2
{[%clk 0:04:48.8]} 34... e4 {[%clk 0:02:30.9]} 35. Bb5 {[%clk 0:04:27.8]} 35...
Rcd6 {[%clk 0:00:38.5]} 36. bxa5 {[%clk 0:04:23.1]} 36... e3 {[%clk 0:00:15.8]}
37. Rf4 {[%clk 0:03:44.1]} 37... Nxb5 {[%clk 0:00:14.6]} 38. Bxf6+ {[%clk
0:03:42.9]} 38... Ke6 {[%clk 0:00:12.6]} 39. Re4+ {[%clk 0:03:11.7]} 39... Kd7
{[%clk 0:00:13.1]} 40. axb5 {[%clk 0:03:11.6]} 40... Rxb5+ {[%clk 0:00:13.8]}
41. Kc1 {[%clk 0:03:11.9]} 41... Rxa5 {[%clk 0:00:14.3]} 42. Rxe3 {[%clk
0:02:55.6]} 42... Rad5 {[%clk 0:00:10.8]} 43. Be5 {[%clk 0:02:41.6]} 43... Re6
{[%clk 0:00:09.6]} 44. Bf4 {[%clk 0:02:32.2]} 44... Ra6 {[%clk 0:00:08.2]} 45.
Rb3 {[%clk 0:02:09.1]} 45... Ra1+ {[%clk 0:00:08.1]} 46. Rb1 {[%clk 0:02:09.6]}
46... Raa5 {[%clk 0:00:05.8]} 47. Rd1 {[%clk 0:02:09.3]} 47... Ke6 {[%clk
0:00:07]} 48. Rb6+ {[%clk 0:02:07.8]} 48... Kf5 {[%clk 0:00:06.8]} 49. Rxd5+
{[%clk 0:02:07.7]} 49... Rxd5 {[%clk 0:00:07.6]} 50. c3 {[%clk 0:02:05.7]} 50...
Ke4 {[%clk 0:00:08.4]} 51. Kc2 {[%clk 0:02:04.5]} 51... Kf3 {[%clk 0:00:09]} 52.
Rf6 {[%clk 0:02:04.1]} 52... Rd7 {[%clk 0:00:06.4]} 53. c4 {[%clk 0:02:04]}
53... Ke4 {[%clk 0:00:07.2]} 54. Kc3 {[%clk 0:02:03.8]} 54... Ra7 {[%clk
0:00:07.2]} 55. c5 {[%clk 0:01:57.4]} 55... Ra5 {[%clk 0:00:04.3]} 56. Kb4
{[%clk 0:01:56.7]} 56... Ra2 {[%clk 0:00:03.8]} 57. Rxf7 {[%clk 0:01:56]} 57...
Rb2+ {[%clk 0:00:03.9]} 58. Ka5 {[%clk 0:01:56.5]} 58... Rc2 {[%clk 0:00:04.5]}
59. Kb6 {[%clk 0:01:56.2]} 1-0

[Event "GrandPrix_29.05"]
[Site "Chess.com"]
[Date "2020.05.29"]
[Round "4"]
[White "vpantev"]
[Black "Rikikits"]
[Result "1/2-1/2"]
[WhiteElo "2671"]
[BlackElo "2774"]
[TimeControl "600+2"]
[EndTime "10:59:38 PDT"]
[Termination "Game drawn by repetition"]

1. d4 {[%clk 0:10:01.9]} 1... Nf6 {[%clk 0:09:58.8]} 2. Nf3 {[%clk 0:10:02.3]}
2... g6 {[%clk 0:09:59.6]} 3. Bf4 {[%clk 0:10:01.9]} 3... Bg7 {[%clk 0:09:53.6]}
4. e3 {[%clk 0:10:01.9]} 4... O-O {[%clk 0:09:54.2]} 5. Be2 {[%clk 0:10:01.5]}
5... d6 {[%clk 0:09:55.5]} 6. c4 {[%clk 0:09:43.7]} 6... c5 {[%clk 0:09:41.4]}
7. Nc3 {[%clk 0:09:43.3]} 7... Nh5 {[%clk 0:09:23.7]} 8. d5 {[%clk 0:08:50.9]}
8... Nxf4 {[%clk 0:09:22.2]} 9. exf4 {[%clk 0:08:51.6]} 9... Na6 {[%clk
0:08:55.2]} 10. O-O {[%clk 0:08:50.1]} 10... Nc7 {[%clk 0:08:55.9]} 11. Qd2
{[%clk 0:08:40.5]} 11... Bd7 {[%clk 0:08:51.6]} 12. Rfd1 {[%clk 0:08:18.1]}
12... Rb8 {[%clk 0:08:50.9]} 13. a4 {[%clk 0:08:13.2]} 13... a6 {[%clk
0:08:51.2]} 14. Rab1 {[%clk 0:07:39.4]} 14... b5 {[%clk 0:08:45.5]} 15. axb5
{[%clk 0:07:39.9]} 15... axb5 {[%clk 0:08:47.4]} 16. b3 {[%clk 0:07:39.1]} 16...
b4 {[%clk 0:08:34.8]} 17. Ne4 {[%clk 0:07:30.7]} 17... Ra8 {[%clk 0:08:35.6]}
18. h3 {[%clk 0:07:20.3]} 18... Ne8 {[%clk 0:08:21.5]} 19. Ng3 {[%clk
0:07:16.1]} 19... Nf6 {[%clk 0:08:10.5]} 20. Bd3 {[%clk 0:07:11]} 20... Ra3
{[%clk 0:08:09.1]} 21. f5 {[%clk 0:07:10.3]} 21... Re8 {[%clk 0:07:37.4]} 22.
Qf4 {[%clk 0:06:56.5]} 22... Qc7 {[%clk 0:07:18.1]} 23. Ng5 {[%clk 0:06:42.3]}
23... h6 {[%clk 0:07:05.9]} 24. Nxf7 {[%clk 0:06:14.2]} 24... Kxf7 {[%clk
0:07:03.8]} 25. fxg6+ {[%clk 0:06:15.3]} 25... Kg8 {[%clk 0:07:02.8]} 26. Bf5
{[%clk 0:06:13.7]} 26... Rf8 {[%clk 0:06:46.4]} 27. Qf3 {[%clk 0:05:49.8]} 27...
Ra2 {[%clk 0:06:30.5]} 28. Re1 {[%clk 0:05:47.5]} 28... Qd8 {[%clk 0:05:53.1]}
29. Re3 {[%clk 0:05:15.8]} 29... Kh8 {[%clk 0:05:53.7]} 30. Rbe1 {[%clk
0:05:09.5]} 30... Ng8 {[%clk 0:05:54.2]} 31. Qg4 {[%clk 0:04:54.9]} 31... Bxf5
{[%clk 0:05:38]} 32. Nxf5 {[%clk 0:04:52.6]} 32... Rf6 {[%clk 0:05:12.3]} 33.
Rf3 {[%clk 0:03:56.8]} 33... Qe8 {[%clk 0:04:53.8]} 34. Rg3 {[%clk 0:03:12.1]}
34... Qa8 {[%clk 0:04:35]} 35. Rge3 {[%clk 0:03:02.7]} 35... Qf8 {[%clk
0:03:42.8]} 36. Rf3 {[%clk 0:02:55.5]} 36... Qe8 {[%clk 0:03:28.3]} 37. Rg3
{[%clk 0:02:54.3]} 37... Rc2 {[%clk 0:03:20.8]} 38. h4 {[%clk 0:02:48.1]} 38...
Rc3 {[%clk 0:03:07.5]} 39. Ree3 {[%clk 0:02:33.7]} 39... Rc1+ {[%clk 0:03:00.2]}
40. Kh2 {[%clk 0:02:33.9]} 40... Qa8 {[%clk 0:03:01]} 41. Rgf3 {[%clk
0:02:22.8]} 41... Qa1 {[%clk 0:02:59.7]} 42. Kg3 {[%clk 0:02:20.2]} 42... Rh1
{[%clk 0:02:53.5]} 43. Nxg7 {[%clk 0:02:09]} 43... Kxg7 {[%clk 0:02:37.9]} 44.
Rxf6 {[%clk 0:02:03.5]} 44... Qxf6 {[%clk 0:02:39.8]} 45. h5 {[%clk 0:01:54.5]}
45... Rc1 {[%clk 0:02:26.4]} 46. f3 {[%clk 0:01:37]} 46... Rc3 {[%clk
0:02:19.3]} 47. Qf4 {[%clk 0:01:35.4]} 47... Qg5+ {[%clk 0:01:05.3]} 48. Qxg5
{[%clk 0:01:35.1]} 48... hxg5 {[%clk 0:01:07.2]} 49. Kf2 {[%clk 0:01:36.4]}
49... Rxe3 {[%clk 0:01:07.6]} 50. Kxe3 {[%clk 0:01:36.9]} 50... Kf6 {[%clk
0:01:09.5]} 51. Ke4 {[%clk 0:01:31.8]} 51... Nh6 {[%clk 0:01:07]} 52. g4 {[%clk
0:01:32.1]} 52... Ng8 {[%clk 0:01:07.9]} 53. f4 {[%clk 0:01:30.9]} 53... Nh6
{[%clk 0:01:04]} 54. Kf3 {[%clk 0:01:31.8]} 54... Ng8 {[%clk 0:00:32]} 55. Kg3
{[%clk 0:01:32]} 55... Nh6 {[%clk 0:00:16.7]} 56. Kf3 {[%clk 0:01:32.5]} 56...
Ng8 {[%clk 0:00:18.1]} 57. Kg3 {[%clk 0:01:33.3]} 57... Nh6 {[%clk 0:00:19.3]}
58. Kf3 {[%clk 0:01:34]} 1/2-1/2

[Event "GrandPrix_29.05"]
[Site "Chess.com"]
[Date "2020.05.29"]
[Round "4"]
[White "fujiwara_hoga"]
[Black "Khayala13"]
[Result "1-0"]
[WhiteElo "2128"]
[BlackElo "1928"]
[TimeControl "600+2"]
[EndTime "10:59:45 PDT"]
[Termination "fujiwara_hoga won by resignation"]

1. d4 {[%clk 0:10:01.9]} 1... Nf6 {[%clk 0:09:57.5]} 2. c4 {[%clk 0:10:00]} 2...
e5 {[%clk 0:09:56.5]} 3. dxe5 {[%clk 0:09:59.4]} 3... Ng4 {[%clk 0:09:53.8]} 4.
Bf4 {[%clk 0:09:57.1]} 4... Nc6 {[%clk 0:09:52.8]} 5. Nf3 {[%clk 0:09:56.6]}
5... Bb4+ {[%clk 0:09:53.3]} 6. Nbd2 {[%clk 0:09:55.6]} 6... Qe7 {[%clk
0:09:51.1]} 7. e3 {[%clk 0:09:55.2]} 7... Ngxe5 {[%clk 0:09:50.8]} 8. Nxe5
{[%clk 0:09:55.2]} 8... Nxe5 {[%clk 0:09:52.7]} 9. Be2 {[%clk 0:09:56.2]} 9...
d6 {[%clk 0:09:47.6]} 10. O-O {[%clk 0:09:54]} 10... a5 {[%clk 0:09:42.9]} 11.
Nb3 {[%clk 0:09:11.1]} 11... a4 {[%clk 0:09:37.5]} 12. Nd4 {[%clk 0:08:36.5]}
12... O-O {[%clk 0:09:26.8]} 13. Nc2 {[%clk 0:08:36.6]} 13... Bc5 {[%clk
0:09:25.5]} 14. Nd4 {[%clk 0:08:07.1]} 14... Ng6 {[%clk 0:08:56.4]} 15. Bg3
{[%clk 0:08:05.9]} 15... f5 {[%clk 0:08:53.8]} 16. Re1 {[%clk 0:07:47.5]} 16...
Qf7 {[%clk 0:08:36.1]} 17. Qd2 {[%clk 0:07:05.5]} 17... f4 {[%clk 0:08:17.4]}
18. exf4 {[%clk 0:07:01.4]} 18... Nxf4 {[%clk 0:08:14.6]} 19. Bf3 {[%clk
0:06:51.5]} 19... Qxc4 {[%clk 0:07:43.2]} 20. Rad1 {[%clk 0:06:08.5]} 20... Ng6
{[%clk 0:06:45.4]} 21. h4 {[%clk 0:05:30.3]} 21... Bb4 {[%clk 0:05:32.9]} 22.
Qg5 {[%clk 0:04:59.1]} 22... Ra5 {[%clk 0:05:05.7]} 23. Qe3 {[%clk 0:03:30.8]}
23... Bxe1 {[%clk 0:04:56]} 24. Qxe1 {[%clk 0:03:30.7]} 24... Ne5 {[%clk
0:04:34.7]} 25. Qxa5 {[%clk 0:03:20]} 25... Nxf3+ {[%clk 0:04:23.6]} 26. Nxf3
{[%clk 0:03:19.4]} 26... Bg4 {[%clk 0:03:34.6]} 27. Re1 {[%clk 0:03:07.9]} 27...
b5 {[%clk 0:02:51]} 28. a3 {[%clk 0:01:58.8]} 28... Qf7 {[%clk 0:01:58.3]} 29.
Qxb5 {[%clk 0:01:45.8]} 29... Bxf3 {[%clk 0:01:53.1]} 30. gxf3 {[%clk
0:01:47.7]} 30... Qxf3 {[%clk 0:01:53.7]} 31. Qxa4 {[%clk 0:01:46.9]} 31... Qf7
{[%clk 0:01:41.1]} 32. Qe4 {[%clk 0:01:45.6]} 32... Kh8 {[%clk 0:01:41.5]} 33.
Qe7 {[%clk 0:01:41.9]} 33... Qf5 {[%clk 0:01:36.5]} 34. Qxc7 {[%clk 0:01:23.8]}
34... h6 {[%clk 0:01:37.2]} 35. Qxd6 {[%clk 0:01:20.1]} 35... Rf6 {[%clk
0:01:31.7]} 36. Qe5 {[%clk 0:01:15.1]} 36... Qf3 {[%clk 0:01:22.9]} 37. Qe8+
{[%clk 0:01:13.7]} 37... Rf8 {[%clk 0:01:23.7]} 38. Qe4 {[%clk 0:01:07.1]} 38...
Qb3 {[%clk 0:01:20.5]} 39. Qb4 {[%clk 0:00:54.5]} 39... Qf3 {[%clk 0:01:17.7]}
40. Re3 {[%clk 0:00:52.1]} 40... Qd1+ {[%clk 0:01:16.4]} 41. Qe1 {[%clk
0:00:52.3]} 41... Qd7 {[%clk 0:01:15.6]} 42. b4 {[%clk 0:00:47.2]} 42... Rf6
{[%clk 0:01:08.9]} 43. Re8+ {[%clk 0:00:44.3]} 43... Kh7 {[%clk 0:01:09.3]} 44.
Qe4+ {[%clk 0:00:44.5]} 44... Rg6 {[%clk 0:01:06.6]} 45. Rh8+ {[%clk 0:00:35]}
45... Kxh8 {[%clk 0:01:06.5]} 46. Qxg6 {[%clk 0:00:34]} 46... Qd1+ {[%clk
0:01:07.5]} 47. Kh2 {[%clk 0:00:34.6]} 47... Qb3 {[%clk 0:01:04.6]} 48. Be5
{[%clk 0:00:22.9]} 1-0

[Event "GrandPrix_29.05"]
[Site "Chess.com"]
[Date "2020.05.29"]
[Round "4"]
[White "Tesla37"]
[Black "Valeriy_Neverov"]
[Result "1-0"]
[WhiteElo "2860"]
[BlackElo "2523"]
[TimeControl "600+2"]
[EndTime "10:59:54 PDT"]
[Termination "Tesla37 won on time"]

1. e4 {[%clk 0:10:01.9]} 1... c5 {[%clk 0:09:56.9]} 2. Nf3 {[%clk 0:10:02.1]}
2... d6 {[%clk 0:09:56.9]} 3. Nc3 {[%clk 0:10:02.6]} 3... Nf6 {[%clk 0:09:54.3]}
4. d4 {[%clk 0:10:02]} 4... cxd4 {[%clk 0:09:54.6]} 5. Qxd4 {[%clk 0:10:02.9]}
5... a6 {[%clk 0:09:24.3]} 6. e5 {[%clk 0:10:02]} 6... Nc6 {[%clk 0:09:23]} 7.
Qa4 {[%clk 0:10:01.3]} 7... dxe5 {[%clk 0:09:19.5]} 8. Nxe5 {[%clk 0:10:00.7]}
8... Bd7 {[%clk 0:09:07]} 9. Nxd7 {[%clk 0:10:01.1]} 9... Qxd7 {[%clk
0:09:06.7]} 10. Bd2 {[%clk 0:10:01.9]} 10... Qe6+ {[%clk 0:08:50.7]} 11. Be2
{[%clk 0:09:52.3]} 11... g6 {[%clk 0:08:51.4]} 12. O-O-O {[%clk 0:09:46]} 12...
Bg7 {[%clk 0:08:51.3]} 13. Rhe1 {[%clk 0:09:29.8]} 13... O-O {[%clk 0:07:50.3]}
14. Bf3 {[%clk 0:09:28.4]} 14... Qd6 {[%clk 0:07:42.5]} 15. Bxc6 {[%clk
0:08:20.9]} 15... bxc6 {[%clk 0:07:26.2]} 16. Bf4 {[%clk 0:08:21]} 16... Qc5
{[%clk 0:07:11.4]} 17. Be3 {[%clk 0:08:19.9]} 17... Qf5 {[%clk 0:06:55.5]} 18.
Bd4 {[%clk 0:07:17.8]} 18... c5 {[%clk 0:06:17.3]} 19. Be3 {[%clk 0:07:03.6]}
19... Rfb8 {[%clk 0:05:44.4]} 20. Qf4 {[%clk 0:06:57.7]} 20... Qc8 {[%clk
0:05:12.5]} 21. a3 {[%clk 0:06:48]} 21... e6 {[%clk 0:04:37.3]} 22. b3 {[%clk
0:05:16.4]} 22... Qc6 {[%clk 0:03:45.5]} 23. Qf3 {[%clk 0:04:51.9]} 23... Qxf3
{[%clk 0:03:31.4]} 24. gxf3 {[%clk 0:04:51.5]} 24... c4 {[%clk 0:03:03.9]} 25.
bxc4 {[%clk 0:04:35.4]} 25... Ng4 {[%clk 0:02:28.2]} 26. Rd3 {[%clk 0:04:03.9]}
26... Nxe3 {[%clk 0:02:15.9]} 27. fxe3 {[%clk 0:04:03]} 27... Rc8 {[%clk
0:02:07.2]} 28. Na4 {[%clk 0:04:00.7]} 28... Rab8 {[%clk 0:01:59.9]} 29. Rb3
{[%clk 0:03:41.7]} 29... Bf8 {[%clk 0:01:28.4]} 30. Kb2 {[%clk 0:03:39.4]} 30...
Bd6 {[%clk 0:00:46.5]} 31. f4 {[%clk 0:03:01.3]} 31... Rxc4 {[%clk 0:00:42.1]}
32. Rxb8+ {[%clk 0:02:46.5]} 32... Bxb8 {[%clk 0:00:41.5]} 33. Kb3 {[%clk
0:02:47]} 33... Rc7 {[%clk 0:00:26.9]} 34. c4 {[%clk 0:02:37.2]} 34... Ba7
{[%clk 0:00:25.3]} 35. Kc3 {[%clk 0:02:30.8]} 35... Kf8 {[%clk 0:00:25.3]} 36.
e4 {[%clk 0:02:28.1]} 36... Ke7 {[%clk 0:00:23.4]} 37. Re2 {[%clk 0:02:06.7]}
37... e5 {[%clk 0:00:21.4]} 38. fxe5 {[%clk 0:01:51.6]} 38... Ke6 {[%clk
0:00:20.3]} 39. Nb2 {[%clk 0:01:52.1]} 39... Bc5 {[%clk 0:00:11.4]} 40. Nd3
{[%clk 0:01:48.7]} 40... Ba7 {[%clk 0:00:09.5]} 41. Rb2 {[%clk 0:01:45.8]} 41...
g5 {[%clk 0:00:06.2]} 42. h3 {[%clk 0:01:44.3]} 42... h5 {[%clk 0:00:04.6]} 43.
Rg2 {[%clk 0:01:42.1]} 43... Be3 {[%clk 0:00:04.2]} 44. Re2 {[%clk 0:01:34.1]}
44... Bf4 {[%clk 0:00:04.2]} 45. c5 {[%clk 0:01:33.2]} 45... Bxe5+ {[%clk
0:00:04.8]} 46. Kc4 {[%clk 0:01:34]} 46... g4 {[%clk 0:00:05.9]} 47. hxg4 {[%clk
0:01:33.6]} 47... hxg4 {[%clk 0:00:06.3]} 48. Rg2 {[%clk 0:01:34.4]} 48... Bd6
{[%clk 0:00:04.8]} 49. Rxg4 {[%clk 0:01:32.9]} 49... Be7 {[%clk 0:00:05.6]} 50.
Rg2 {[%clk 0:01:24.8]} 50... Bf6 {[%clk 0:00:04]} 51. Nf4+ {[%clk 0:01:20.4]}
51... Ke5 {[%clk 0:00:03.4]} 52. Nd5 {[%clk 0:01:21.2]} 52... Rc8 {[%clk
0:00:03.9]} 53. Rf2 {[%clk 0:01:14.7]} 1-0

[Event "GrandPrix_29.05"]
[Site "Chess.com"]
[Date "2020.05.29"]
[Round "4"]
[White "ALeks_Ivlev"]
[Black "moro182"]
[Result "0-1"]
[WhiteElo "2256"]
[BlackElo "2551"]
[TimeControl "600+2"]
[EndTime "10:59:57 PDT"]
[Termination "moro182 won on time"]

1. d4 {[%clk 0:10:01.9]} 1... d5 {[%clk 0:09:59.5]} 2. c4 {[%clk 0:09:59.6]}
2... e6 {[%clk 0:10:00.7]} 3. Nf3 {[%clk 0:09:56.7]} 3... a6 {[%clk 0:09:59.7]}
4. cxd5 {[%clk 0:09:54.2]} 4... exd5 {[%clk 0:10:01.6]} 5. Nc3 {[%clk
0:09:54.4]} 5... Nf6 {[%clk 0:09:45.5]} 6. Bg5 {[%clk 0:09:52.8]} 6... Be6
{[%clk 0:09:30.2]} 7. e3 {[%clk 0:09:51.7]} 7... Nbd7 {[%clk 0:09:27.3]} 8. Bd3
{[%clk 0:09:50.8]} 8... Bd6 {[%clk 0:09:19.6]} 9. O-O {[%clk 0:09:49.4]} 9... c6
{[%clk 0:09:10.6]} 10. Qc2 {[%clk 0:07:30.5]} 10... Qc7 {[%clk 0:08:58.4]} 11.
Ne2 {[%clk 0:06:16.9]} 11... Bg4 {[%clk 0:08:39.3]} 12. Bf4 {[%clk 0:06:16]}
12... Bxf4 {[%clk 0:08:05.3]} 13. Nxf4 {[%clk 0:06:09.5]} 13... Bxf3 {[%clk
0:08:03.8]} 14. gxf3 {[%clk 0:06:09.1]} 14... g5 {[%clk 0:07:54.9]} 15. Ne2
{[%clk 0:06:07.9]} 15... O-O-O {[%clk 0:07:46.4]} 16. b4 {[%clk 0:06:05.3]}
16... Kb8 {[%clk 0:07:44.2]} 17. a4 {[%clk 0:06:04.8]} 17... h5 {[%clk
0:07:05.2]} 18. Rfc1 {[%clk 0:05:47.4]} 18... g4 {[%clk 0:06:48.4]} 19. f4
{[%clk 0:05:46.2]} 19... h4 {[%clk 0:06:13.3]} 20. b5 {[%clk 0:05:44.9]} 20...
g3 {[%clk 0:06:11.8]} 21. hxg3 {[%clk 0:05:11.7]} 21... hxg3 {[%clk 0:04:57.3]}
22. Nxg3 {[%clk 0:05:11.3]} 22... Nh5 {[%clk 0:02:42.3]} 23. bxc6 {[%clk
0:04:58.7]} 23... Nxg3 {[%clk 0:02:33.3]} 24. fxg3 {[%clk 0:04:56]} 24... Rdg8
{[%clk 0:02:02.5]} 25. cxd7 {[%clk 0:03:29.1]} 25... Qxd7 {[%clk 0:01:49]} 26.
Bf5 {[%clk 0:02:45.4]} 26... Qe7 {[%clk 0:01:06.8]} 27. Qf2 {[%clk 0:02:30.1]}
27... Qh4 {[%clk 0:00:39.8]} 28. Kf1 {[%clk 0:02:10.9]} 28... Rxg3 {[%clk
0:00:29.1]} 29. Ke2 {[%clk 0:02:01.7]} 29... Rhg8 {[%clk 0:00:06.9]} 30. Rh1
{[%clk 0:00:42.1]} 30... Qf6 {[%clk 0:00:07.5]} 31. Bh3 {[%clk 0:00:37.9]} 31...
Qc6 {[%clk 0:00:08.1]} 32. Rhc1 {[%clk 0:00:34.2]} 32... Qg6 {[%clk 0:00:04.6]}
33. Bf1 {[%clk 0:00:18]} 33... Qe4 {[%clk 0:00:04.4]} 34. Ke1 {[%clk 0:00:09.8]}
34... Rxe3+ {[%clk 0:00:05.2]} 35. Be2 {[%clk 0:00:10.2]} 35... Rg2 {[%clk
0:00:05.9]} 36. Ra2 {[%clk 0:00:07.1]} 36... Rxf2 {[%clk 0:00:06.6]} 37. Kxf2
{[%clk 0:00:08.4]} 37... Rxe2+ {[%clk 0:00:06.9]} 38. Rxe2 {[%clk 0:00:08.8]}
38... Qxf4+ {[%clk 0:00:08.4]} 0-1